fUST/lending_fUST_20250613
["ID","MTS","AMOUNT","RATE_DAILY","PERIOD"]
[365659615,1749823839402,-500.0,0.00021095,2]
[365659616,1749823839412,-460.0,0.00021095,4]
[365659617,1749823839422,-353.43177733,0.00021095,4]
[365659618,1749823839432,-460.0,0.00021095,4]
[365659619,1749823839441,-440.0,0.00021095,4]
[365659620,1749823839451,-460.0,0.00021095,4]
[365659621,1749823839461,-460.0,0.00021095,4]
[365659622,1749823839470,-460.0,0.00021095,4]
[365659623,1749823839479,-413.91251402,0.00021095,4]
[365659624,1749823839489,-440.0,0.00021095,4]
[365659625,1749823839498,-435.74229308,0.00021095,4]
[365659626,1749823839507,-440.0,0.00021095,4]
[365659627,1749823839517,-460.0,0.00021095,4]
[365659628,1749823839527,-440.0,0.00021095,4]
[365659629,1749823839538,-440.0,0.00021095,4]
[365659630,1749823839548,-460.0,0.00021095,4]
[365659631,1749823839557,-1834.56,0.00021095,4]
[365659632,1749823839570,-420.0,0.00021095,4]
[365659633,1749823839580,-460.0,0.00021095,4]
[365659634,1749823839589,-440.0,0.00021095,4]
[365659635,1749823839599,-440.0,0.00021095,4]
[365659636,1749823839608,-290.0,0.00021095,4]
[365659637,1749823839618,-460.0,0.00021095,4]
[365659638,1749823839627,-440.0,0.00021095,4]
[365659639,1749823839638,-516.7,0.00021095,4]
[365659640,1749823839647,-2784.47,0.00021095,4]
[365659641,1749823839657,-460.0,0.00021095,4]
[365659642,1749823839667,-538.10815954,0.00021095,4]
[365659643,1749823839677,-460.0,0.00021095,4]
[365659644,1749823839686,-460.0,0.00021095,4]
[365659645,1749823839695,-223.75463275,0.00021095,4]
[365659646,1749823839705,-522.61138969,0.00021095,4]
[365659647,1749823839714,-440.0,0.00021095,4]
[365659648,1749823839723,-460.0,0.00021095,4]
[365659649,1749823839733,-420.0,0.00021095,4]
[365659650,1749823839742,-460.0,0.00021095,4]
[365659651,1749823839753,-460.0,0.00021095,4]
[365659652,1749823839762,-427.80384565,0.00021095,4]
[365659653,1749823839772,-460.0,0.00021095,4]
[365659654,1749823839781,-460.0,0.00021095,4]
[365659655,1749823839790,-185.58406903,0.00021095,4]
[365659656,1749823839800,-460.0,0.00021095,4]
[365659657,1749823839809,-354.76377024,0.00021095,4]
[365659658,1749823839820,-1433.23,0.00021095,4]
[365659659,1749823839830,-1946.46,0.00021095,4]
[365659660,1749823839840,-460.0,0.00021095,4]
[365659661,1749823839849,-2344.68,0.00021095,4]
[365659662,1749823839859,-854.78,0.00021095,4]
[365659663,1749823839868,-460.0,0.00021095,4]
[365659664,1749823839878,-460.0,0.00021095,4]
[365659665,1749823839888,-460.0,0.00021095,4]
[365659666,1749823839897,-460.0,0.00021095,4]
[365659667,1749823839907,-460.0,0.00021095,4]
[365659668,1749823839916,-470.89,0.00021095,4]
[365659669,1749823839926,-460.0,0.00021095,4]
[365659670,1749823839935,-460.0,0.00021095,4]
[365659671,1749823839944,-183.80560514,0.00021095,4]
[365659672,1749823839953,-460.0,0.00021095,4]
[365659673,1749823839963,-460.0,0.00021095,4]
[365659674,1749823839971,-460.0,0.00021095,4]
[365659675,1749823839981,-420.0,0.00021095,4]
[365659676,1749823839990,-460.0,0.00021095,4]
[365659677,1749823839999,-971.46,0.00021095,4]
[365659678,1749823840008,-460.0,0.00021095,4]
[365659679,1749823840017,-420.0,0.00021095,4]
[365659680,1749823840026,-460.0,0.00021095,4]
[365659681,1749823840035,-301.31931123,0.00021095,4]
[365659682,1749823840045,-460.0,0.00021095,4]
[365659683,1749823840054,-460.0,0.00021095,4]
[365659684,1749823840065,-460.0,0.00021095,4]
[365659685,1749823840074,-460.0,0.00021095,4]
[365659686,1749823840084,-420.0,0.00021095,4]
[365659687,1749823840093,-460.0,0.00021095,4]
[365659688,1749823840103,-169.2560603,0.00021095,4]
[365659689,1749823840113,-996.54,0.00021095,4]
[365659690,1749823840123,-460.0,0.00021095,4]
[365659691,1749823840134,-460.0,0.00021095,4]
[365659692,1749823840144,-460.0,0.00021095,4]
[365659694,1749823840154,-460.0,0.00021095,4]
[365659696,1749823840168,-440.0,0.00021095,4]
[365659698,1749823840178,-440.0,0.00021095,4]
[365659699,1749823840188,-460.0,0.00021095,4]
[365659700,1749823840198,-460.0,0.00021095,4]
[365659701,1749823840207,-460.0,0.00021095,4]
[365659702,1749823840217,-713.93,0.00021095,4]
[365659703,1749823840226,-460.0,0.00021095,4]
[365659704,1749823840236,-460.0,0.00021095,4]
[365659705,1749823840246,-460.0,0.00021095,4]
[365659706,1749823840258,-430.0,0.00021095,4]
[365659707,1749823840267,-460.0,0.00021095,4]
[365659708,1749823840277,-460.0,0.00021095,4]
[365659709,1749823840287,-460.0,0.00021095,4]
[365659710,1749823840296,-460.0,0.00021095,4]
[365659711,1749823840306,-460.0,0.00021095,4]
[365659712,1749823840319,-732.16,0.00021095,4]
[365659714,1749823840329,-712.62,0.00021095,4]
[365659715,1749823840338,-440.0,0.00021095,4]
[365659716,1749823840348,-460.0,0.00021095,4]
[365659717,1749823840358,-2232.62,0.00021095,4]
[365659718,1749823840367,-460.0,0.00021095,4]
[365659719,1749823840376,-460.0,0.00021095,4]
[365659721,1749823840386,-460.0,0.00021095,4]
[365659722,1749823840396,-460.0,0.00021095,4]
[365659723,1749823840405,-460.0,0.00021095,4]
[365659724,1749823840414,-460.0,0.00021095,4]
[365659725,1749823840424,-460.0,0.00021095,4]
[365659726,1749823840433,-472.0471706,0.00021095,4]
[365659727,1749823840442,-376.75770092,0.00021095,4]
[365659729,1749823840452,-460.0,0.00021095,4]
[365659731,1749823840461,-1088.01,0.00021095,4]
[365659733,1749823840472,-440.0,0.00021095,4]
[365659735,1749823840482,-460.0,0.00021095,4]
[365659737,1749823840491,-460.0,0.00021095,4]
[365659739,1749823840500,-244.66,0.00021095,4]
[365659741,1749823840510,-440.0,0.00021095,4]
[365659743,1749823840519,-460.0,0.00021095,4]
[365659745,1749823840529,-460.0,0.00021095,4]
[365659747,1749823840538,-460.0,0.00021095,4]
[365659749,1749823840547,-336.14451815,0.00021095,4]
[365659751,1749823840556,-460.0,0.00021095,4]
[365659753,1749823840567,-423.50436608,0.00021095,4]
[365659755,1749823840576,-1889.33,0.00021095,4]
[365659757,1749823840586,-460.0,0.00021095,4]
[365659759,1749823840595,-440.0,0.00021095,4]
[365659761,1749823840604,-460.0,0.00021095,4]
[365659763,1749823840614,-443.57215356,0.00021095,4]
[365659765,1749823840624,-627.58,0.00021095,4]
[365659767,1749823840633,-2525.75,0.00021095,4]
[365659769,1749823840643,-460.0,0.00021095,4]
[365659771,1749823840652,-460.0,0.00021095,4]
[365659773,1749823840662,-460.0,0.00021095,4]
[365659775,1749823840672,-460.0,0.00021095,4]
[365659777,1749823840682,-460.0,0.00021095,4]
[365659779,1749823840691,-460.0,0.00021095,4]
[365659781,1749823840700,-3564.51,0.00021095,4]
[365659783,1749823840709,-460.0,0.00021095,4]
[365659785,1749823840718,-460.0,0.00021095,4]
[365659787,1749823840728,-500.0,0.00021095,4]
[365659789,1749823840737,-501.62838365,0.00021095,4]
[365659791,1749823840746,-460.0,0.00021095,4]
[365659793,1749823840755,-500.0,0.00021095,4]
[365659795,1749823840765,-460.0,0.00021095,4]
[365659796,1749823840774,-460.0,0.00021095,4]
[365659799,1749823840784,-693.97484646,0.00021176,4]
[365659800,1749823840793,-290.56649574,0.00021186,2]
[365659802,1749823840803,-352.90764497,0.00021259,2]
[365659804,1749823840814,-720.9963032,0.00021269,2]
[365659806,1749823840823,-693.97484646,0.00021314,5]
[365659808,1749823840833,-861.15,0.00021359,3]
[365659811,1749823840842,-430.58,0.00021359,3]
[365659813,1749823840852,-215.29,0.00021359,3]
[365659815,1749823840862,-645.89,0.00021359,3]
[365659816,1749823840871,-175.93,0.00021359,3]
[365659819,1749823840881,-527.79,0.00021359,3]
[365659820,1749823840891,-500.0,0.00021368,2]
[365659822,1749823840901,-165.7,0.00021368,2]
[365659824,1749823840911,-193.04818674,0.00021368,2]
[365659827,1749823840921,-500.0,0.00021368,2]
[365659829,1749823840930,-500.0,0.00021368,2]
[365659830,1749823840939,-500.0,0.00021368,2]
[365659833,1749823840949,-500.0,0.00021368,2]
[365659834,1749823840959,-500.0,0.00021368,2]
[365659836,1749823840968,-588.74786241,0.00021368,2]
[365659838,1749823840978,-460.0,0.00021369,4]
[365659841,1749823840987,-200.41472825,0.00021369,4]
[365659842,1749823840996,-460.0,0.00021369,4]
[365659844,1749823841006,-460.0,0.00021369,4]
[365659846,1749823841015,-460.0,0.00021369,4]
[365659848,1749823841024,-460.0,0.00021369,4]
[365659850,1749823841034,-460.0,0.00021369,4]
[365659852,1749823841043,-460.0,0.00021369,4]
[365659854,1749823841053,-460.0,0.00021369,4]
[365659856,1749823841063,-460.0,0.00021369,4]
[365659858,1749823841072,-460.0,0.00021369,4]
[365659860,1749823841083,-460.0,0.00021369,4]
[365659862,1749823841092,-460.0,0.00021369,4]
[365659864,1749823841101,-233.35208697,0.00021369,4]
[365659866,1749823841111,-460.0,0.00021369,4]
[365659868,1749823841120,-460.0,0.00021369,4]
[365659870,1749823841130,-460.0,0.00021369,4]
[365659872,1749823841140,-460.0,0.00021369,4]
[365659874,1749823841149,-256.95083678,0.00021369,4]
[365659876,1749823841162,-540.0,0.00021369,4]
[365659878,1749823841171,-460.0,0.00021369,4]
[365659880,1749823841180,-460.0,0.00021369,2]
[365659882,1749823841190,-460.0,0.00021369,4]
[365659884,1749823841200,-460.0,0.00021369,4]
[365659886,1749823841210,-460.0,0.00021369,4]
[365659888,1749823841219,-460.0,0.00021369,4]
[365659890,1749823841229,-460.0,0.00021369,4]
[365659892,1749823841238,-460.0,0.00021369,4]
[365659894,1749823841248,-460.0,0.00021369,4]
[365659896,1749823841258,-460.0,0.00021369,4]
[365659898,1749823841268,-460.0,0.00021369,4]
[365659900,1749823841277,-172.83495075,0.00021369,4]
[365659902,1749823841287,-1834.56,0.00021369,4]
[365659904,1749823841297,-460.0,0.00021369,4]
[365659906,1749823841306,-420.0,0.00021369,4]
[365659908,1749823841318,-2784.47,0.00021369,4]
[365659910,1749823841328,-460.0,0.00021369,4]
[365659912,1749823841338,-460.0,0.00021369,4]
[365659914,1749823841347,-460.0,0.00021369,4]
[365659916,1749823841360,-460.0,0.00021369,4]
[365659918,1749823841369,-460.0,0.00021369,4]
[365659920,1749823841379,-460.0,0.00021369,4]
[365659922,1749823841388,-460.0,0.00021369,4]
[365659924,1749823841398,-460.0,0.00021369,4]
[365659926,1749823841407,-460.0,0.00021369,4]
[365659928,1749823841417,-1433.23,0.00021369,4]
[365659930,1749823841427,-1946.46,0.00021369,4]
[365659932,1749823841436,-460.0,0.00021369,4]
[365659934,1749823841446,-2344.68,0.00021369,4]
[365659936,1749823841455,-854.78,0.00021369,4]
[365659938,1749823841465,-460.0,0.00021369,4]
[365659940,1749823841475,-460.0,0.00021369,4]
[365659942,1749823841484,-460.0,0.00021369,4]
[365659944,1749823841494,-460.0,0.00021369,4]
[365659946,1749823841503,-460.0,0.00021369,4]
[365659948,1749823841513,-470.89,0.00021369,4]
[365659950,1749823841523,-460.0,0.00021369,4]
[365659953,1749823841532,-460.0,0.00021369,4]
[365659954,1749823841542,-460.0,0.00021369,4]
[365659957,1749823841551,-431.34230826,0.00021369,4]
[365659958,1749823841563,-460.0,0.00021369,4]
[365659960,1749823841573,-460.0,0.00021369,4]
[365659972,1749823841678,-971.46,0.00021369,4]
[365659974,1749823841689,-460.0,0.00021369,4]
[365659976,1749823841699,-460.0,0.00021369,4]
[365659978,1749823841709,-460.0,0.00021369,4]
[365659980,1749823841718,-460.0,0.00021369,4]
[365659982,1749823841728,-460.0,0.00021369,4]
[365659984,1749823841738,-460.0,0.00021369,4]
[365659986,1749823841747,-460.0,0.00021369,4]
[365659988,1749823841756,-996.54,0.00021369,4]
[365659990,1749823841766,-460.0,0.00021369,4]
[365659992,1749823841776,-460.0,0.00021369,4]
[365659994,1749823841786,-460.0,0.00021369,4]
[365659996,1749823841795,-460.0,0.00021369,4]
[365659998,1749823841805,-460.0,0.00021369,4]
[365660000,1749823841816,-460.0,0.00021369,4]
[365660002,1749823841825,-460.0,0.00021369,4]
[365660004,1749823841835,-713.93,0.00021369,4]
[365660006,1749823841844,-257.87887871,0.00021369,4]
[365660008,1749823841853,-460.0,0.00021369,4]
[365660010,1749823841863,-433.54597485,0.00021369,4]
[365660012,1749823841872,-460.0,0.00021369,4]
[365660014,1749823841882,-460.0,0.00021369,4]
[365660016,1749823841891,-460.0,0.00021369,4]
[365660018,1749823841904,-460.0,0.00021369,4]
[365660020,1749823841920,-460.0,0.00021369,4]
[365660022,1749823841930,-732.16,0.00021369,4]
[365660024,1749823841939,-712.62,0.00021369,4]
[365660026,1749823841949,-460.0,0.00021369,4]
[365660028,1749823841958,-2232.62,0.00021369,4]
[365660030,1749823841968,-460.0,0.00021369,4]
[365660032,1749823841978,-360.0,0.00021369,4]
[365660034,1749823841988,-460.0,0.00021369,4]
[365660036,1749823841997,-315.21830925,0.00021369,4]
[365660038,1749823842007,-460.0,0.00021369,4]
[365660041,1749823842016,-460.0,0.00021369,4]
[365660043,1749823842026,-460.0,0.00021369,4]
[365660045,1749823842035,-1088.01,0.00021369,4]
[365660047,1749823842045,-460.0,0.00021369,4]
[365660049,1749823842054,-460.0,0.00021369,4]
[365660051,1749823842064,-460.0,0.00021369,4]
[365660052,1749823842074,-460.0,0.00021369,4]
[365660054,1749823842084,-460.0,0.00021369,4]
[365660056,1749823842094,-460.0,0.00021369,4]
[365660058,1749823842104,-460.0,0.00021369,4]
[365660060,1749823842117,-1889.33,0.00021369,4]
[365660062,1749823842135,-460.0,0.00021369,4]
[365660064,1749823842144,-460.0,0.00021369,4]
[365660066,1749823842154,-627.58,0.00021369,4]
[365660068,1749823842166,-2525.75,0.00021369,4]
[365660070,1749823842176,-400.70560515,0.00021369,4]
[365660072,1749823842185,-579.14307656,0.00021369,4]
[365660074,1749823842195,-460.0,0.00021369,4]
[365660076,1749823842206,-460.0,0.00021369,4]
[365660078,1749823842215,-460.0,0.00021369,4]
[365660080,1749823842225,-460.0,0.00021369,4]
[365660082,1749823842235,-3564.51,0.00021369,4]
[365660084,1749823842246,-460.0,0.00021369,4]
[365660086,1749823842256,-460.0,0.00021369,4]
[365660088,1749823842267,-460.0,0.00021369,4]
[365660090,1749823842276,-500.0,0.00021369,4]
[365660092,1749823842286,-460.0,0.00021369,4]
[365660094,1749823842295,-460.0,0.00021369,4]
[365660096,1749823842305,-290.56649574,0.00021377,2]
[365660098,1749823842315,-653.0,0.00021427,2]
[365660100,1749823842325,-693.97484646,0.00021452,5]
[365660102,1749823842335,-653.0,0.00021455,2]
[365660104,1749823842344,-653.0,0.00021472,2]
[365660106,1749823842354,-653.0,0.00021478,2]
[365660108,1749823842365,-504.52806028,0.00021551,2]
[365660110,1749823842374,-693.97484646,0.0002159,5]
[365660112,1749823842383,-500.0,0.000216,2]
[365660114,1749823842393,-460.0,0.00021643,4]
[365660116,1749823842402,-348.40528453,0.00021643,4]
[365660118,1749823842412,-460.0,0.00021643,4]
[365660120,1749823842422,-460.0,0.00021643,4]
[365660122,1749823842431,-460.0,0.00021643,4]
[365660124,1749823842441,-460.0,0.00021643,4]
[365660126,1749823842451,-460.0,0.00021643,4]
[365660128,1749823842460,-460.0,0.00021643,4]
[365660130,1749823842470,-460.0,0.00021643,4]
[365660132,1749823842479,-380.59528938,0.00021643,4]
[365660134,1749823842490,-460.0,0.00021643,4]
[365660136,1749823842499,-460.0,0.00021643,4]
[365660138,1749823842509,-460.0,0.00021643,4]
[365660140,1749823842519,-460.0,0.00021643,4]
[365660142,1749823842529,-460.0,0.00021643,4]
[365660144,1749823842538,-460.0,0.00021643,4]
[365660147,1749823842548,-460.0,0.00021643,4]
[365660149,1749823842558,-460.0,0.00021643,2]
[365660151,1749823842569,-460.0,0.00021643,4]
[365660152,1749823842579,-286.32212784,0.00021643,4]
[365660155,1749823842590,-460.0,0.00021643,4]
[365660156,1749823842599,-460.0,0.00021643,4]
[365660159,1749823842609,-460.0,0.00021643,4]
[365660161,1749823842619,-460.0,0.00021643,4]
[365660162,1749823842628,-577.51,0.00021643,4]
[365660164,1749823842638,-460.0,0.00021643,4]
[365660166,1749823842648,-1834.56,0.00021643,4]
[365660169,1749823842658,-460.0,0.00021643,4]
[365660170,1749823842668,-2784.47,0.00021643,4]
[365660172,1749823842677,-460.0,0.00021643,4]
[365660174,1749823842687,-460.0,0.00021643,4]
[365660176,1749823842696,-460.0,0.00021643,4]
[365660178,1749823842706,-370.0,0.00021643,4]
[365660181,1749823842717,-460.0,0.00021643,4]
[365660183,1749823842727,-460.0,0.00021643,4]
[365660185,1749823842737,-460.0,0.00021643,4]
[365660187,1749823842747,-460.0,0.00021643,4]
[365660189,1749823842757,-460.0,0.00021643,4]
[365660191,1749823842767,-1433.23,0.00021643,4]
[365660193,1749823842776,-1946.46,0.00021643,4]
[365660195,1749823842786,-460.0,0.00021643,4]
[365660197,1749823842797,-2344.68,0.00021643,4]
[365660199,1749823842807,-854.78,0.00021643,4]
[365660201,1749823842818,-460.0,0.00021643,4]
[365660203,1749823842828,-460.0,0.00021643,4]
[365660205,1749823842837,-460.0,0.00021643,4]
[365660207,1749823842847,-460.0,0.00021643,4]
[365660209,1749823842857,-460.0,0.00021643,4]
[365660211,1749823842867,-470.89,0.00021643,4]
[365660213,1749823842878,-188.0,0.00021643,4]
[365660215,1749823842888,-460.0,0.00021643,4]
[365660217,1749823842898,-460.0,0.00021643,4]
[365660219,1749823842907,-460.0,0.00021643,4]
[365660221,1749823842917,-460.0,0.00021643,4]
[365660223,1749823842926,-971.46,0.00021643,4]
[365660225,1749823842936,-460.0,0.00021643,4]
[365660227,1749823842946,-460.0,0.00021643,4]
[365660229,1749823842956,-460.0,0.00021643,4]
[365660231,1749823842965,-460.0,0.00021643,4]
[365660233,1749823842975,-460.0,0.00021643,4]
[365660235,1749823842984,-460.0,0.00021643,4]
[365660237,1749823842994,-327.22,0.00021643,4]
[365660239,1749823843004,-996.54,0.00021643,4]
[365660241,1749823843014,-460.0,0.00021643,4]
[365660243,1749823843024,-460.0,0.00021643,4]
[365660245,1749823843033,-460.0,0.00021643,4]
[365660247,1749823843043,-350.0,0.00021643,4]
[365660248,1749823843053,-460.0,0.00021643,4]
[365660249,1749823843064,-460.0,0.00021643,4]
[365660250,1749823843074,-460.0,0.00021643,4]
[365660251,1749823843084,-713.93,0.00021643,4]
[365660252,1749823843094,-460.0,0.00021643,4]
[365660253,1749823843104,-364.32344527,0.00021643,4]
[365660256,1749823843115,-460.0,0.00021643,4]
[365660258,1749823843126,-460.0,0.00021643,4]
[365660261,1749823843136,-460.0,0.00021643,4]
[365660263,1749823843145,-460.0,0.00021643,4]
[365660266,1749823843156,-732.16,0.00021643,4]
[365660269,1749823843168,-712.62,0.00021643,4]
[365660270,1749823843177,-460.0,0.00021643,4]
[365660271,1749823843187,-2232.62,0.00021643,4]
[365660272,1749823843196,-460.0,0.00021643,4]
[365660273,1749823843206,-460.0,0.00021643,4]
[365660274,1749823843215,-460.0,0.00021643,4]
[365660275,1749823843224,-460.0,0.00021643,4]
[365660276,1749823843236,-460.0,0.00021643,4]
[365660277,1749823843246,-1088.01,0.00021643,4]
[365660278,1749823843256,-460.0,0.00021643,4]
[365660279,1749823843265,-460.0,0.00021643,4]
[365660280,1749823843274,-460.0,0.00021643,4]
[365660281,1749823843283,-460.0,0.00021643,4]
[365660282,1749823843293,-460.0,0.00021643,4]
[365660283,1749823843303,-460.0,0.00021643,4]
[365660284,1749823843315,-460.0,0.00021643,4]
[365660285,1749823843326,-1889.33,0.00021643,4]
[365660286,1749823843336,-460.0,0.00021643,4]
[365660287,1749823843346,-460.0,0.00021643,4]
[365660288,1749823843356,-627.58,0.00021643,4]
[365660290,1749823843365,-2525.75,0.00021643,4]
[365660292,1749823843374,-460.0,0.00021643,4]
[365660294,1749823843384,-460.0,0.00021643,4]
[365660296,1749823843394,-460.0,0.00021643,4]
[365660298,1749823843405,-460.0,0.00021643,4]
[365660300,1749823843413,-3564.51,0.00021643,4]
[365660302,1749823843423,-460.0,0.00021643,4]
[365660304,1749823843433,-460.0,0.00021643,4]
[365660306,1749823843442,-460.0,0.00021643,4]
[365660308,1749823843452,-500.0,0.00021643,4]
[365660310,1749823843461,-460.0,0.00021643,4]
[365660312,1749823843471,-460.0,0.00021643,4]
[365660314,1749823843481,-720.9963032,0.00021694,2]
[365660316,1749823843490,-563.17186668,0.00021727,2]
[365660318,1749823843499,-500.0,0.00021727,2]
[365660320,1749823843509,-500.0,0.00021727,2]
[365660322,1749823843518,-693.97484646,0.00021728,5]
[365660324,1749823843527,-500.0,0.00021762,2]
[365660326,1749823843536,-500.0,0.00021762,2]
[365660328,1749823843546,-500.0,0.00021762,2]
[365660330,1749823843555,-503.18092134,0.00021762,2]
[365660332,1749823843567,-507.6131257,0.00021762,2]
[365660334,1749823843576,-500.0,0.00021762,2]
[365660336,1749823843586,-2334.44881714,0.00021804,2]
[365660337,1749823843595,-31116.89770291,0.00021817,2]
[365660339,1749823843604,-21884.07036181,0.00021817,2]
[365660341,1749823843614,-41106.69635821,0.00021817,2]
[365660343,1749823843623,-693.97484646,0.00021866,6]
[365660346,1749823843633,-500.0,0.00021873,2]
[365660349,1749823843643,-500.0,0.00021873,2]
[365660352,1749823843652,-508.50880777,0.00021873,2]
[365660355,1749823843662,-501.82835657,0.00021894,2]
[365660358,1749823843671,-151.0,0.00021915,2]
[365660361,1749823843680,-500.0,0.00021916,3]
[365660364,1749823843690,-460.0,0.00021917,4]
[365660366,1749823843699,-460.0,0.00021917,4]
[365660369,1749823843709,-460.0,0.00021917,4]
[365660370,1749823843719,-460.0,0.00021917,4]
[365660373,1749823843730,-460.0,0.00021917,4]
[365660375,1749823843739,-460.0,0.00021917,4]
[365660377,1749823843750,-460.0,0.00021917,4]
[365660379,1749823843759,-460.0,0.00021917,4]
[365660380,1749823843769,-460.0,0.00021917,4]
[365660383,1749823843778,-270.0,0.00021917,4]
[365660385,1749823843788,-460.0,0.00021917,4]
[365660387,1749823843798,-460.0,0.00021917,4]
[365660389,1749823843807,-460.0,0.00021917,4]
[365660390,1749823843817,-460.0,0.00021917,4]
[365660392,1749823843827,-460.0,0.00021917,4]
[365660394,1749823843836,-460.0,0.00021917,2]
[365660396,1749823843845,-460.0,0.00021917,4]
[365660398,1749823843854,-500.0,0.00021917,2]
[365660400,1749823843863,-460.0,0.00021917,4]
[365660402,1749823843872,-460.0,0.00021917,4]
[365660404,1749823843882,-460.0,0.00021917,4]
[365660406,1749823843891,-460.0,0.00021917,4]
[365660408,1749823843901,-460.0,0.00021917,4]
[365660410,1749823843911,-1834.56,0.00021917,4]
[365660412,1749823843921,-460.0,0.00021917,4]
[365660414,1749823843930,-2784.47,0.00021917,4]
[365660416,1749823843941,-460.0,0.00021917,4]
[365660418,1749823843951,-460.0,0.00021917,4]
[365660420,1749823843961,-460.0,0.00021917,4]
[365660422,1749823843970,-460.0,0.00021917,4]
[365660424,1749823843979,-460.0,0.00021917,4]
[365660426,1749823843989,-460.0,0.00021917,4]
[365660428,1749823843998,-460.0,0.00021917,4]
[365660431,1749823844009,-460.0,0.00021917,4]
[365660432,1749823844019,-1433.23,0.00021917,4]
[365660434,1749823844029,-1946.46,0.00021917,4]
[365660436,1749823844039,-460.0,0.00021917,4]
[365660438,1749823844050,-2344.68,0.00021917,4]
[365660440,1749823844061,-854.78,0.00021917,4]
[365660442,1749823844078,-460.0,0.00021917,4]
[365660444,1749823844089,-460.0,0.00021917,4]
[365660446,1749823844100,-460.0,0.00021917,4]
[365660449,1749823844112,-460.0,0.00021917,4]
[365660450,1749823844123,-460.0,0.00021917,4]
[365660452,1749823844133,-470.89,0.00021917,4]
[365660454,1749823844143,-460.0,0.00021917,4]
[365660456,1749823844154,-460.0,0.00021917,4]
[365660458,1749823844167,-460.0,0.00021917,4]
[365660468,1749823844272,-460.0,0.00021917,4]
[365660470,1749823844283,-971.46,0.00021917,4]
[365660472,1749823844293,-380.0,0.00021917,4]
[365660474,1749823844304,-460.0,0.00021917,4]
[365660476,1749823844317,-460.0,0.00021917,4]
[365660478,1749823844327,-460.0,0.00021917,4]
[365660480,1749823844337,-460.0,0.00021917,4]
[365660482,1749823844347,-460.0,0.00021917,4]
[365660484,1749823844356,-996.54,0.00021917,4]
[365660486,1749823844366,-460.0,0.00021917,4]
[365660488,1749823844376,-460.0,0.00021917,4]
[365660490,1749823844385,-460.0,0.00021917,4]
[365660492,1749823844395,-460.0,0.00021917,4]
[365660494,1749823844405,-460.0,0.00021917,4]
[365660496,1749823844415,-460.0,0.00021917,4]
[365660498,1749823844425,-713.93,0.00021917,4]
[365660500,1749823844435,-460.0,0.00021917,4]
[365660502,1749823844444,-460.0,0.00021917,4]
[365660504,1749823844454,-460.0,0.00021917,4]
[365660506,1749823844463,-460.0,0.00021917,4]
[365660508,1749823844473,-460.0,0.00021917,4]
[365660510,1749823844482,-732.16,0.00021917,4]
[365660512,1749823844491,-712.62,0.00021917,4]
[365660514,1749823844501,-460.0,0.00021917,4]